bitfinex-derivatives/quotes_ETHF0:USTF0_20240924
["timestamp","ask_amount","ask_price","bid_price","bid_amount"]
[1727213710409,1.22,2647.5,2647.3,6.02561]
[1727213711013,1.22,2647.5,2647.4,0.37771]
[1727213711514,3.2078,2648.0,2647.3,5.6479]
[1727213711716,1.22,2647.8,2647.7,0.37765]
[1727213713118,1.22,2647.8,2647.7,0.37766]
[1727213713318,1.22,2647.8,2647.6,3.2078]
[1727213713319,1.22,2647.8,2647.6,3.58547]
[1727213714519,4.2978,2648.3,2647.7,0.37765]
[1727213714713,4.2978,2648.3,2647.6,3.2078]
[1727213714714,3.58538,2648.3,2647.8,1.18694]
[1727213715014,3.58538,2648.3,2647.9,0.811]
[1727213715610,0.37759,2648.2,2647.9,0.811]
[1727213715810,1.19759,2648.2,2647.9,0.811]
[1727213716420,0.82,2648.2,2647.9,1.18863]
[1727213717219,1.22,2648.0,2647.9,1.18863]
[1727213717414,1.22,2648.0,2647.9,5.21953]
[1727213718322,0.37758,2648.3,2647.9,8.99632]
[1727213718521,1.22,2648.1,2647.9,5.21952]
[1727213720026,1.22,2648.1,2648.0,0.37762]
[1727213722935,0.82,2648.5,2648.1,0.37759]
[1727213723133,1.22,2648.3,2648.2,0.37759]
[1727213723739,1.22,2648.3,2648.1,0.3776]
[1727213724140,1.59758,2648.3,2648.1,0.3776]
[1727213724336,1.59758,2648.3,2648.2,3.2078]
[1727213724540,1.22,2648.3,2648.2,3.2078]
[1727213725242,1.22,2648.3,2648.2,3.9824]
[1727213728747,1.22,2648.3,2648.2,4.35999]
[1727213728948,0.7916,2648.7,2648.3,0.37757]
[1727213729136,0.7916,2648.7,2648.3,1.14037]
[1727213729438,1.22,2648.5,2648.3,1.14037]
[1727213730639,1.59755,2648.5,2648.3,1.14037]
[1727213731243,1.22,2648.5,2648.3,1.14037]
[1727213731643,1.59755,2648.5,2648.3,1.14037]
[1727213732345,1.22,2648.5,2648.3,1.14037]
[1727213732544,1.22,2648.5,2648.4,0.37756]
[1727213732745,1.22,2648.5,2648.4,1.20796]
[1727213736345,1.22,2648.7,2648.5,0.37754]
[1727213736547,1.22,2648.7,2648.6,0.7839]
[1727213736945,1.59752,2648.7,2648.6,0.7839]
[1727213737251,1.22,2648.7,2648.6,0.7839]
[1727213737454,1.59752,2648.7,2648.6,0.7839]
[1727213738349,1.59752,2648.7,2647.9,3.2078]
[1727213738350,4.9952,2648.7,2647.9,3.2078]
[1727213738544,1.22,2648.1,2647.8,0.7626]
[1727213738852,0.37767,2647.7,2647.4,1.5813]
[1727213739052,1.59767,2647.7,2647.4,1.5813]
[1727213739245,1.59767,2647.7,2647.4,1.959]
[1727213739246,1.22,2647.7,2647.4,1.959]
[1727213740449,2.65,2647.8,2647.4,1.5813]
[1727213741457,2.65,2647.8,2647.4,1.959]
[1727213742253,3.02765,2647.8,2647.4,1.959]
[1727213742651,0.37766,2647.7,2647.4,0.8026]
[1727213742854,0.37766,2647.7,2647.3,0.37772]
[1727213743052,3.02765,2647.8,2647.4,0.3777]
[1727213743352,0.37766,2647.7,2647.3,0.37771]
[1727213743558,0.37768,2647.6,2647.1,3.9704]
[1727213743953,0.7741,2647.5,2647.2,0.37773]
[1727213745358,0.7741,2647.5,2647.1,3.2078]
[1727213745359,0.37771,2647.4,2647.1,3.2078]
[1727213745557,0.37772,2647.4,2647.1,3.2078]
[1727213747557,0.37772,2647.4,2647.1,3.58555]
[1727213747860,4.1875,2647.5,2647.3,0.37771]
[1727213747861,0.7741,2647.5,2647.3,0.37771]
[1727213748255,0.7741,2647.5,2647.4,0.37771]
[1727213748564,3.4134,2647.8,2647.5,0.37769]
[1727213748565,3.79106,2647.8,2647.5,0.37769]
[1727213748761,4.58446,2647.8,2647.5,0.37769]
[1727213749159,0.37768,2647.6,2647.3,0.37771]
[1727213749357,0.37767,2647.7,2647.4,0.3777]
[1727213750366,0.37767,2647.7,2647.5,0.37769]
[1727213752571,4.2068,2647.8,2647.6,0.37768]
[1727213752572,4.58446,2647.8,2647.6,0.37768]
[1727213753763,0.37766,2647.7,2647.6,0.37768]
[1727213754969,3.82106,2647.8,2647.6,0.37768]
[1727213755167,3.82106,2647.8,2647.7,0.821]
[1727213755969,0.37767,2647.7,2647.2,1.93375781]
[1727213756268,0.37767,2647.7,2647.3,0.821]
[1727213756662,0.37767,2647.7,2647.4,0.8182]
[1727213756864,0.37767,2647.7,2647.5,1.16748]
[1727213760378,1.59767,2647.7,2647.5,1.16748]
[1727213762674,0.37763,2648.0,2647.8,0.37763]
[1727213762878,0.37763,2648.0,2647.9,1.16523]
[1727213763078,2.8407,2648.1,2647.9,0.7876]
[1727213763305,2.8407,2648.1,2648.0,0.37762]
[1727213763874,3.21831,2648.1,2647.9,1.16522]
[1727213764082,3.21832,2648.1,2647.9,1.16522]
[1727213765981,2.8407,2648.1,2648.0,0.37762]
[1727213766479,3.21831,2648.1,2647.9,1.16523]
[1727213767066,0.37762,2648.0,2647.9,1.16523]
[1727213767978,3.21832,2648.1,2647.9,1.16523]
[1727213770280,0.37762,2648.0,2647.9,1.16523]
[1727213770875,3.21831,2648.1,2647.9,1.16523]
[1727213771784,0.37762,2648.0,2647.9,1.16523]
[1727213771985,2.8407,2648.1,2647.9,1.16523]
[1727213772283,0.37762,2648.0,2647.9,1.16523]
[1727213773680,2.8407,2648.1,2647.9,1.16523]
[1727213773681,3.21832,2648.1,2647.9,1.16523]
[1727213773882,3.21832,2648.1,2648.0,0.37762]
[1727213774477,3.21832,2648.1,2647.9,1.92473]
[1727213775083,2.38642,2648.1,2647.9,1.92473]
[1727213775878,1.59762,2648.1,2647.9,1.92473]
[1727213777281,0.37762,2648.0,2647.9,1.5471]
[1727213777589,0.37762,2648.0,2647.9,0.7876]
[1727213777885,0.37762,2648.0,2647.9,1.16523]
[1727213778090,0.37762,2648.0,2647.9,0.7876]
[1727213778484,0.37762,2648.0,2647.9,1.16523]
[1727213782089,1.22,2648.1,2647.9,0.7876]
[1727213782689,0.37762,2648.0,2647.9,1.16523]
[1727213783094,0.37762,2648.0,2647.9,0.7876]
[1727213783281,0.37762,2648.0,2647.9,1.16523]
[1727213783797,1.59762,2648.1,2647.9,1.16523]
[1727213784092,0.37762,2648.1,2647.9,1.16522]
[1727213784281,1.85406913,2648.1,2647.9,2.15464781]
[1727213784687,0.37762,2648.0,2647.9,2.15464781]
[1727213784991,1.85406913,2648.1,2647.9,2.15464781]
[1727213785590,0.37762,2648.0,2647.9,2.15464781]
[1727213785897,1.85405913,2648.1,2647.9,2.15464781]
[1727213786686,1.47644913,2648.1,2647.9,2.15464781]
[1727213786898,1.47644913,2648.2,2648.0,0.37762]
[1727213787097,1.85405913,2648.1,2648.0,1.16072]
[1727213787288,0.37761,2648.1,2648.0,1.16072]
[1727213787493,1.85404913,2648.2,2648.0,1.16072]
[1727213788094,1.85404913,2648.2,2648.1,0.37761]
[1727213788095,1.47644913,2648.2,2648.1,0.37761]
[1727213788303,2.04292793,2648.2,2648.1,0.37761]
[1727213788483,1.47644913,2648.2,2648.1,0.37761]
[1727213788686,1.85403913,2648.2,2648.1,0.37761]
[1727213789291,2.04292932,2648.2,2648.1,0.37761]
[1727213789700,1.85403913,2648.2,2648.1,0.37761]
[1727213790389,2.04292885,2648.2,2648.0,0.7831]
[1727213790591,1.85403913,2648.2,2648.0,0.7831]
[1727213791492,1.85403913,2648.2,2648.1,0.37761]
[1727213792202,1.47644913,2648.2,2648.1,0.37761]
[1727213792499,1.6653309,2648.2,2648.1,0.37761]
[1727213792894,1.47644913,2648.2,2648.1,0.37761]
[1727213793295,1.85403913,2648.2,2648.1,0.37761]
[1727213796200,1.85403913,2648.2,2648.0,2.15013781]
[1727213798309,1.47644913,2648.2,2648.0,1.77252781]
[1727213798606,2.04292316,2648.2,2648.0,2.15013781]
[1727213798798,1.85403913,2648.2,2648.0,2.15013781]
[1727213802203,1.85403913,2648.2,2648.1,0.37761]
[1727213802405,1.85403913,2648.2,2648.0,2.15013781]
[1727213802406,2.04638318,2648.2,2648.0,2.15013781]
[1727213802602,1.47990549,2648.1,2648.0,2.15013781]
[1727213802808,1.85749549,2648.2,2648.0,2.15013781]
[1727213803008,1.47990549,2648.1,2648.0,2.15013781]
[1727213803209,1.85749549,2648.2,2648.0,2.15013781]
[1727213803409,1.85751549,2648.1,2648.0,2.15013781]
[1727213803906,1.85751549,2648.1,2648.0,3.23602079]
[1727213804109,1.85751549,2648.1,2648.0,2.15013781]
[1727213804302,1.85751549,2648.1,2648.0,3.75491744]
[1727213804498,1.85751549,2648.1,2648.0,2.66970635]
[1727213804705,1.47990549,2648.1,2648.0,2.15096187]
[1727213805007,1.47990549,2648.1,2648.0,3.75575709]
[1727213805404,0.18888622,2648.1,2648.0,2.15096187]
[1727213805715,1.66918399,2648.1,2648.0,2.66979483]
[1727213807218,1.66918399,2648.1,2648.0,2.66978883]
[1727213807707,0.18888622,2648.1,2648.0,2.7659773]
[1727213808211,1.66943037,2648.1,2648.0,2.7659773]
[1727213808409,1.48054415,2648.1,2648.0,4.24718593]
[1727213808605,2.33755979,2648.2,2648.1,0.37761]
[1727213808804,2.52643476,2648.2,2648.1,2.9739862]
[1727213809112,2.52643476,2648.2,2648.1,1.88728675]
[1727213809317,2.52643476,2648.2,2648.1,2.97399699]
[1727213809707,2.52643476,2648.2,2648.1,2.59638699]
[1727213809903,2.33755979,2648.2,2648.1,1.50967675]
[1727213810215,2.5264348,2648.2,2648.1,1.50967675]
[1727213812002,2.5264348,2648.2,2648.1,1.88728675]
[1727213812209,2.1488348,2648.2,2648.1,1.88728675]
[1727213812800,2.1488348,2648.2,2648.1,1.36845979]
[1727213813003,2.1488348,2648.2,2648.1,1.88751224]
[1727213813413,0.18887501,2648.2,2648.1,1.98197241]
[1727213814617,0.18887501,2648.2,2648.1,1.98196979]
[1727213814815,0.18887702,2648.2,2648.1,1.98198245]
[1727213816310,0.18887702,2648.2,2648.1,1.46293262]
[1727213816708,0.18887702,2648.2,2648.1,1.98198928]
[1727213819519,0.18887682,2648.2,2648.1,3.46330671]
[1727213819918,0.18887682,2648.2,2648.1,3.46333949]
[1727213820510,11.18487682,2648.2,2648.0,1.48644263]
[1727213820809,11.18487682,2648.2,2647.6,3.2078]
[1727213820810,6.56183911,2648.1,2647.6,0.991064]
[1727213821007,4.4278,2647.7,2647.3,0.991064]
[1727213821312,0.37772,2647.3,2647.2,0.10769312]
[1727213821616,0.37772,2647.3,2647.1,1.46289738]
[1727213821617,0.37773,2647.2,2647.1,1.46289738]
[1727213821821,1.85671396,2647.2,2647.1,1.46289738]
[1727213822025,2.04559078,2647.2,2647.1,1.46289738]
[1727213822409,5.37533,2647.2,2647.1,0.47183338]
[1727213822619,7.98761575,2647.2,2647.1,0.47183338]
[1727213822817,7.98762287,2647.2,2647.1,0.47183338]
[1727213823125,6.50863891,2647.2,2647.1,0.47183338]
[1727213823418,7.7968653,2647.2,2647.1,0.47183338]
[1727213824023,7.98583732,2647.2,2647.1,0.47183338]
[1727213824523,6.31967,2647.2,2647.1,0.47183338]
[1727213825019,2.54207,2647.2,2647.1,0.47183338]
[1727213826419,3.5256365,2647.2,2647.1,0.47183338]
[1727213828615,2.54207,2647.2,2647.1,0.47183338]
[1727213829308,6.31967,2647.2,2647.1,0.47183338]
[1727213830315,0.94438,2647.1,2646.6,2.00081]
[1727213830514,2.16441,2647.0,2646.6,1.623]
[1727213830719,0.37781,2646.7,2646.6,1.623]
[1727213831421,2.16441,2647.0,2646.6,1.623]
[1727213831817,0.3778,2646.8,2646.6,1.623]
[1727213832624,0.3778,2646.8,2646.6,2.00082]
[1727213833127,0.3778,2646.8,2646.6,1.623]
[1727213835425,2.16441,2647.0,2646.6,2.00082]
[1727213835625,0.3778,2646.8,2646.6,1.623]
[1727213836221,0.3778,2646.8,2646.6,2.00082]
[1727213836427,0.37781,2646.7,2646.6,1.623]
[1727213836724,0.37778,2646.9,2646.6,1.623]
[1727213836922,0.37778,2647.0,2646.6,1.623]
[1727213837122,0.37778,2647.0,2646.8,0.37778]
[1727213838220,0.37778,2647.0,2646.7,0.3778]
[1727213840626,0.37778,2646.9,2646.7,0.3778]
[1727213840927,0.37775,2647.1,2646.8,0.37778]
[1727213841127,3.13236,2647.2,2646.8,0.37778]
[1727213841321,0.37776,2647.1,2646.8,0.37778]
[1727213841723,0.37776,2647.1,2646.9,0.37778]
[1727213841924,0.968,2647.2,2647.0,1.92125]
[1727213842121,0.37773,2647.3,2647.1,0.8398]
[1727213842122,0.37772,2647.3,2647.1,0.8398]
[1727213842521,2.1643,2647.4,2647.1,1.21755]
[1727213842722,3.2078,2647.5,2647.3,0.37772]
[1727213842723,0.3777,2647.5,2647.3,0.37772]
[1727213842921,0.98120273,2647.9,2647.4,0.7788]
[1727213843235,1.59763,2648.0,2647.7,0.37766]
[1727213843433,1.59763,2648.0,2647.8,1.6473]
[1727213843825,2.20120273,2648.2,2647.9,0.37763]
[1727213844028,1.5976,2648.2,2647.8,1.6473]
[1727213844228,1.5976,2648.2,2647.9,0.37762]
[1727213844229,1.22,2648.2,2647.9,0.37762]
[1727213844425,1.22,2648.2,2647.8,1.6473]
[1727213844631,1.22,2648.2,2648.1,0.37761]
[1727213845032,1.22,2648.2,2648.0,0.37761]
[1727213845432,1.22,2648.2,2647.8,1.6473]
[1727213845734,5.40900273,2648.4,2647.8,1.6473]
[1727213845930,4.4278,2648.4,2647.8,1.6473]
[1727213846127,4.4278,2648.4,2648.0,0.37761]
[1727213847129,4.4278,2648.4,2648.1,0.3776]
[1727213850534,1.22,2648.4,2648.1,0.3776]
[1727213850730,4.4278,2648.4,2648.1,0.3776]
[1727213851038,1.94820273,2648.6,2648.2,0.37758]
[1727213851234,1.22,2648.4,2648.3,0.7853]
[1727213855328,1.22,2648.4,2648.3,1.5857]
[1727213859642,1.22,2648.4,2648.3,1.96328]
[1727213860343,1.95020273,2648.6,2648.3,1.5857]
[1727213860344,0.98120273,2648.6,2648.3,1.5857]
[1727213860535,0.94378,2648.8,2648.5,0.37755]
[1727213860536,0.98120273,2648.8,2648.5,0.37755]
[1727213860740,1.59751,2648.8,2648.3,1.5857]
[1727213860942,1.59751,2648.8,2648.6,0.37753]
[1727213860943,1.22,2648.8,2648.6,0.37753]
[1727213861750,1.59751,2648.8,2648.7,0.8211]
[1727213867345,0.3775,2648.9,2648.7,0.8211]
[1727213867655,0.3775,2648.9,2648.7,1.6693]
[1727213869159,0.37751,2648.8,2648.7,1.6693]
[1727213870151,1.59751,2648.8,2648.7,1.6693]
[1727213871743,1.22,2648.8,2648.7,1.6693]
[1727213871946,1.59751,2648.8,2648.7,1.6693]
[1727213877147,1.22,2648.8,2648.7,2.04682]
[1727213878660,5.78648273,2649.0,2648.7,2.04681]
[1727213878853,5.78648273,2649.0,2648.8,0.8001]
[1727213879553,5.40900273,2649.0,2648.8,0.8001]
[1727213880061,5.78648273,2649.0,2648.8,1.17761]
[1727213880253,0.98120273,2648.9,2648.8,0.8001]
[1727213880660,0.98120273,2648.9,2648.8,1.17761]
[1727213880865,0.98120273,2648.9,2648.8,0.8001]
[1727213881858,4.80529,2649.0,2648.8,0.8001]
[1727213883157,1.59749,2649.0,2648.8,0.8001]
[1727213883462,4.80529,2649.0,2648.8,0.8001]
[1727213883658,4.80529,2649.0,2648.8,1.17761]
[1727213883854,0.37749,2648.9,2648.8,0.8001]
[1727213885454,0.37749,2648.9,2648.8,1.17761]
[1727213886358,1.35869273,2648.9,2648.8,1.17761]
[1727213887265,1.8492941,2648.9,2648.8,1.17761]
[1727213887654,1.4718041,2648.9,2648.8,1.17761]
[1727213888361,1.8492941,2648.9,2648.8,1.17761]
[1727213888755,1.4718041,2648.9,2648.8,1.17761]
[1727213889463,1.8492941,2648.9,2648.8,1.17761]
[1727213889858,1.4718041,2648.9,2648.8,1.17761]
[1727213890055,6.2770841,2649.0,2648.8,1.17761]
[1727213890257,1.4718041,2648.9,2648.8,1.17761]
[1727213890458,1.8492941,2648.9,2648.8,0.8001]
[1727213890764,0.37756,2648.4,2648.3,0.98607198]
[1727213890959,0.37759,2648.2,2648.1,1.6369]
[1727213891159,1.59759,2648.2,2648.1,1.6369]
[1727213891361,3.26392202,2648.2,2648.1,1.6369]
[1727213891666,0.37761,2648.1,2647.8,0.37764]
[1727213891862,4.57023468,2648.1,2647.8,1.21264]
[1727213892068,4.19262468,2648.1,2647.8,1.21264]
[1727213892261,4.57023468,2648.1,2647.8,0.835]
[1727213892659,0.98482468,2648.1,2647.8,1.21265]
[1727213893363,0.98482468,2648.0,2647.8,1.21265]
[1727213894262,0.98482468,2648.1,2647.8,1.21265]
[1727213895269,1.36243468,2648.1,2647.8,0.835]
[1727213895466,0.98482468,2648.0,2647.8,0.835]
[1727213897166,0.98482468,2648.0,2647.8,1.21265]
[1727213897364,0.98482468,2648.0,2647.8,0.835]
[1727213897665,1.36245468,2648.0,2647.8,0.835]
[1727213898472,1.36245468,2648.0,2647.8,1.21265]
[1727213898473,1.36244468,2648.0,2647.8,1.21265]
[1727213900669,1.36244468,2648.0,2647.8,0.835]
[1727213900670,0.98482468,2648.0,2647.8,0.835]
[1727213900971,1.36245468,2648.0,2647.8,0.835]
[1727213901170,0.37763,2648.0,2647.8,0.835]
[1727213901373,1.36245468,2648.0,2647.8,0.835]
[1727213901671,1.36245468,2648.0,2647.8,1.21265]
[1727213902062,0.37763,2648.0,2647.8,1.21265]
[1727213905273,0.37763,2648.0,2647.8,0.835]
[1727213905568,0.37763,2648.0,2647.8,1.21264]
[1727213905768,3.2078,2648.1,2647.9,0.37763]
[1727213906077,4.19262468,2648.1,2647.9,0.37763]
[1727213906380,3.2078,2648.1,2647.9,0.37763]
[1727213907367,0.37762,2648.0,2647.9,0.37763]
[1727213910572,0.37762,2648.0,2647.8,1.21264]
[1727213911877,0.37762,2648.0,2647.9,0.37763]
[1727213917179,0.37762,2648.0,2647.8,0.835]
[1727213917379,0.37762,2648.0,2647.9,0.37763]
[1727213926187,1.36244468,2648.0,2647.9,0.37763]
[1727213929393,1.36244468,2648.0,2647.8,0.835]
[1727213929394,1.36245468,2648.0,2647.8,1.21264]
[1727213930191,1.36245468,2647.9,2647.8,0.835]
[1727213931382,0.37765,2647.8,2647.7,0.8462]
[1727213931588,2.58299342,2647.8,2647.7,0.8462]
[1727213933495,1.59765,2647.8,2647.7,0.8462]
[1727213934393,1.59765,2647.8,2647.7,1.83227198]
[1727213934394,2.58335187,2647.8,2647.7,1.83227198]
[1727213934594,2.58357956,2647.8,2647.7,1.83227198]
[1727213935191,2.58357956,2647.8,2647.7,1.4990036]
[1727213935387,2.58357956,2647.8,2647.6,1.83117198]
[1727213935388,0.37766,2647.7,2647.6,1.83117198]
[1727213935595,5.25384607,2647.7,2647.6,1.83117198]
[1727213935792,0.37768,2647.6,2647.5,0.98607198]
[1727213935997,1.85711938,2647.6,2647.5,0.98607198]
[1727213936194,1.85711938,2647.6,2647.5,1.499474]
[1727213936495,2.04605591,2647.6,2647.5,3.06927663]
[1727213936691,3.26605591,2647.6,2647.5,3.06927663]
[1727213937502,1.78660938,2647.6,2647.5,1.50427451]
[1727213938201,1.78660938,2647.6,2647.5,0.99087249]
[1727213938603,3.26635216,2647.6,2647.5,0.99087249]
[1727213938898,3.26635216,2647.6,2647.5,1.50396916]
[1727213939086,3.26635216,2647.6,2647.5,0.99087249]
[1727213939286,3.26612729,2647.6,2647.5,0.99087249]
[1727213941205,3.26612815,2647.6,2647.5,0.99087249]
[1727213941394,3.07719791,2647.6,2647.5,0.99087249]
[1727213944993,1.59768,2647.6,2647.5,0.99087249]
[1727213945194,0.37769,2647.5,2647.4,2.59257249]
[1727213945390,1.36351791,2647.5,2647.4,3.10537111]
[1727213945790,0.98582791,2647.5,2647.4,3.48308111]
[1727213945996,0.98582791,2647.5,2647.4,2.97028249]
[1727213946202,1.36351791,2647.5,2647.4,2.59257249]
[1727213946411,2.30774791,2647.5,2647.4,2.59257249]
[1727213946607,0.37769,2647.5,2647.4,1.6017]
[1727213947803,1.36331119,2647.5,2647.4,1.6017]
[1727213948003,0.37769,2647.5,2647.4,1.6017]
[1727213948401,1.3632332,2647.5,2647.4,1.6017]
[1727213948799,1.3632425,2647.5,2647.4,1.97941]
[1727213948993,1.3632425,2647.5,2647.4,1.6017]
[1727213949196,0.37769,2647.5,2647.4,1.6017]
[1727213949400,1.85720791,2647.5,2647.4,1.6017]
[1727213950402,0.37769,2647.5,2647.4,1.6017]
[1727213952104,6.00040546,2647.7,2647.4,1.6017]
[1727213952105,0.05139338,2647.7,2647.5,4.72103]
[1727213952305,0.408,2648.6,2647.6,6.999045]
[1727213952508,1.8899,2648.9,2648.8,0.37751]
[1727213952715,3.2078,2649.1,2648.7,0.37751]
[1727213952899,3.2078,2649.1,2648.8,0.3775]
[1727213953099,3.2078,2649.1,2648.5,2.20923916]
[1727213953100,3.58526,2649.1,2648.5,2.20923916]
[1727213953312,3.2078,2649.1,2648.5,2.20923916]
[1727213953607,3.57319827,2649.1,2648.6,0.37753]
[1727213954503,3.57319827,2649.1,2648.5,1.22]
[1727213954705,3.57319827,2649.1,2648.4,0.98923916]
[1727213954706,4.79320827,2649.1,2648.6,0.37753]
[1727213955508,4.79320827,2649.1,2648.7,1.6034]
[1727213956203,3.2078,2649.0,2648.7,1.6034]
[1727213956718,1.15645,2649.2,2648.7,1.6034]
[1727213957016,1.15645,2649.2,2648.7,1.98091]
[1727213957208,1.15645,2649.2,2648.8,0.3775]
[1727213957209,0.779,2649.2,2648.8,0.3775]
[1727213957411,2.37645,2649.2,2648.7,1.98091]
[1727213958311,2.37645,2649.2,2648.7,1.6034]
[1727213958612,0.37747,2649.1,2648.7,1.6034]
[1727213958911,2.37646,2649.2,2648.7,1.98091]
[1727213959116,0.37746,2649.1,2648.7,1.98091]
[1727213961019,2.37646,2649.2,2648.8,0.3775]
[1727213961513,0.37746,2649.1,2648.8,0.3775]
[1727213961912,3.27346,2649.2,2648.8,0.3775]
[1727213962110,2.37646,2649.2,2648.8,0.3775]
[1727213963015,0.37746,2649.1,2648.8,0.3775]
[1727213964319,0.37746,2649.1,2648.7,1.6034]
[1727213964517,0.37746,2649.1,2648.8,0.3775]
[1727213966116,2.37646,2649.2,2648.8,0.37751]
[1727213966322,1.15646,2649.2,2648.9,0.37749]
[1727213967107,0.37747,2649.1,2648.8,0.3775]
[1727213969920,0.37747,2649.1,2648.9,0.37749]
[1727213971224,0.37747,2649.1,2648.8,0.3775]
[1727213971409,0.37747,2649.1,2648.9,0.37749]
[1727213973510,0.37747,2649.1,2648.7,1.6034]
[1727213973922,0.37747,2649.1,2648.9,0.37749]
[1727213974810,0.37747,2649.1,2648.8,0.3775]
[1727213975310,0.37753,2648.7,2648.4,0.37755]
[1727213975519,0.94388,2648.5,2647.6,5.12406195]
[1727213975714,0.94388,2648.5,2647.7,1.6981]
[1727213975715,0.37761,2648.1,2647.7,1.6981]
[1727213975924,0.8499,2648.0,2647.7,2.07576]
[1727213980226,0.8499,2648.0,2647.7,1.6981]
[1727213980432,1.22752,2648.0,2647.7,1.6981]
[1727213980620,0.8499,2648.0,2647.7,1.6981]
[1727213980824,0.8499,2648.0,2647.7,2.07576]
[1727213981325,0.8499,2648.0,2647.7,1.6981]
[1727213981533,0.8499,2648.0,2647.7,2.07576]
[1727213982132,1.22752,2648.0,2647.7,1.6981]
[1727213982640,1.22752,2648.0,2647.7,2.07576]
[1727213983121,0.8499,2648.0,2647.7,2.07576]
[1727213985230,0.8499,2648.0,2647.7,1.6981]
[1727213985420,1.22753,2648.0,2647.7,1.6981]
[1727213985829,1.22753,2648.0,2647.7,2.07576]
[1727213987130,0.8499,2648.0,2647.7,1.6981]
[1727213987634,1.22753,2648.0,2647.7,1.6981]
[1727213987829,1.22753,2648.0,2647.7,2.07576]
[1727213989839,0.37764,2647.9,2647.7,1.6981]
[1727213990035,0.37763,2647.9,2647.7,2.07576]
[1727213990239,1.22753,2648.0,2647.7,2.07576]
[1727213994033,0.37764,2647.9,2647.7,2.07576]
[1727213996246,0.37764,2647.9,2647.8,0.37765]
[1727214000267,10.9968,2647.9,2647.3,2.46515487]
[1727214000545,0.37775,2647.1,2647.0,0.98606195]
[1727214000747,1.22,2647.1,2646.7,3.2078]
[1727214000949,0.8283,2647.0,2646.6,0.7908]
[1727214001152,2.16439,2647.1,2646.7,0.3778]
[1727214001153,1.22,2647.1,2646.7,0.3778]
[1727214001348,2.0483,2647.1,2646.7,0.803]
[1727214001556,0.37777,2647.0,2646.7,1.1808]
[1727214001746,2.0483,2647.1,2646.7,0.803]
[1727214002050,2.0483,2647.1,2646.7,1.1808]
[1727214002252,0.37778,2646.9,2646.7,0.803]
[1727214004049,2.0483,2647.1,2646.7,1.1808]
[1727214004359,2.0483,2647.1,2646.7,0.803]
[1727214004560,0.37779,2646.8,2646.7,0.803]
[1727214005354,0.37779,2646.9,2646.7,0.803]
[1727214006057,0.37779,2646.8,2646.7,0.803]
[1727214006453,0.37779,2646.8,2646.6,1.16862]
[1727214006649,3.2078,2647.0,2646.6,0.7908]
[1727214006650,0.37778,2646.9,2646.6,0.7908]
[1727214006853,0.37778,2646.9,2646.6,1.16861]
[1727214009071,0.37778,2646.9,2646.7,0.3778]
[1727214010068,0.37778,2646.9,2646.6,1.16861]
[1727214010362,0.37779,2646.8,2646.6,1.16861]
[1727214010565,0.37779,2646.9,2646.7,0.37781]
[1727214011279,0.3778,2646.8,2646.6,1.16862]
[1727214011575,1.2369,2646.8,2646.6,1.16862]
[1727214011769,0.8181,2646.7,2646.6,1.16862]
[1727214012274,0.8181,2646.7,2646.6,4.94702]
[1727214013669,4.0259,2646.7,2646.0,4.25708285]
[1727214013983,4.0259,2646.7,2646.3,1.25515]
[1727214013984,0.37784,2646.5,2646.3,1.25515]
[1727214015575,0.8181,2646.7,2646.6,0.37782]
[1727214015872,0.37777,2647.0,2646.8,0.37779]
[1727214016078,3.26956,2647.1,2646.5,1.76087]
[1727214016282,2.04956,2647.1,2646.9,0.37777]
[1727214016476,0.37781,2646.7,2646.3,0.8773]
[1727214016781,1.24702,2646.6,2646.4,0.37785]
[1727214016979,2.04962,2646.6,2646.4,0.37785]
[1727214017680,1.6718,2646.6,2646.4,0.37785]
[1727214018072,1.6718,2646.6,2646.4,0.37784]
[1727214020485,1.6718,2646.6,2646.5,0.37783]
[1727214024985,0.37779,2646.9,2646.6,0.37781]
[1727214025288,1.6683,2646.8,2646.6,0.37781]
[1727214027688,2.04609,2646.8,2646.6,0.37781]
[1727214028485,3.26609,2646.8,2646.5,0.37782]
[1727214030688,3.26609,2646.8,2646.6,0.37782]
[1727214033088,1.22,2646.7,2646.3,0.8773]
[1727214033387,0.37786,2646.3,2646.2,3.2078]
[1727214033693,1.59786,2646.3,2646.2,3.2078]
[1727214034288,2.44926,2646.3,2646.2,3.2078]
[1727214036387,2.44926,2646.3,2646.1,0.37789]
[1727214036594,2.0714,2646.3,2646.1,0.37789]
[1727214036988,2.44927,2646.3,2646.1,0.37789]
[1727214041195,0.8514,2646.3,2646.2,0.37788]
[1727214043696,0.8514,2646.3,2646.0,0.3779]
[1727214043895,1.22,2646.2,2646.0,0.3779]
[1727214044401,1.22,2646.2,2646.0,1.36396195]
[1727214044600,1.22,2646.2,2646.0,0.3779]
[1727214044793,1.22,2646.2,2646.0,1.36396195]
[1727214045306,1.22,2646.2,2646.0,0.98606195]
[1727214045506,1.22,2646.2,2646.0,1.36395195]
[1727214045898,1.22,2646.2,2646.1,0.98606195]
[1727214046099,1.22,2646.2,2646.0,1.36395195]
[1727214050397,1.22,2646.2,2646.1,0.37789]
[1727214052597,1.22,2646.2,2646.1,1.36395195]
[1727214053608,1.59788,2646.2,2646.1,0.98606195]
[1727214053805,0.37789,2646.1,2646.0,0.98606195]
[1727214054001,0.37789,2646.1,2646.0,2.07703061]
[1727214054809,0.37789,2646.1,2646.0,0.98606195]
[1727214055515,1.59789,2646.2,2646.0,2.0770927]
[1727214055810,1.59789,2646.2,2646.0,0.98606195]
[1727214056407,0.37789,2646.1,2646.0,0.98606195]
[1727214056612,0.37789,2646.1,2646.0,2.07708691]
[1727214056810,0.37789,2646.1,2646.0,0.98606195]